fUSD/lending_fUSD_20240624
["ID","MTS","AMOUNT","RATE_DAILY","PERIOD"]
[330318923,1719257444126,-1804.362065,0.000208,2]
[330318924,1719257444135,-153.886928,0.000208,2]
[330318927,1719257444148,-151.0,0.000208,2]
[330318928,1719257444159,-255.381279,0.000208,2]
[330318931,1719257444168,-157.526113,0.000208,2]
[330318932,1719257444179,-255.381279,0.000208,2]
[330318934,1719257444188,-153.886928,0.000208,2]
[330318936,1719257444198,-151.0,0.000208,2]
[330318939,1719257444208,-151.0,0.000208,2]
[330318941,1719257444218,-570.579589,0.000208,2]
[330318943,1719257444228,-570.579589,0.000208,2]
[330318944,1719257444238,-151.0,0.000208,2]
[330318946,1719257444248,-1279.25528947,0.00020892,2]
[330318949,1719257444258,-151.0,0.000209,2]
[330318950,1719257444267,-151.0,0.000209,2]
[330318952,1719257444276,-151.0,0.000209,2]
[330318955,1719257444286,-151.0,0.000209,2]
[330318957,1719257444296,-257.87981,0.000209,2]
[330318959,1719257444306,-151.0,0.000209,2]
[330318961,1719257444315,-257.87981,0.000209,2]
[330318962,1719257444325,-151.0,0.000209,2]
[330318965,1719257444335,-151.0,0.000209,2]
[330318966,1719257444345,-325.6,0.000209,2]
[330318968,1719257444359,-325.6,0.000209,2]
[330318971,1719257444371,-151.0,0.000209,2]
[330318973,1719257444381,-157.070783,0.000209,2]
[330318974,1719257444393,-151.0,0.000209,2]
[330318976,1719257444406,-221.91433,0.000209,2]
[330318979,1719257444416,-1333.471904,0.000209,2]
[330318981,1719257444426,-221.91433,0.000209,2]
[330318982,1719257444436,-1333.471904,0.000209,2]
[330318984,1719257444446,-151.0,0.000209,2]
[330318986,1719257444456,-151.0,0.000209,2]
[330318988,1719257444466,-151.0,0.000209,2]
[330318991,1719257444476,-156.100432,0.000209,2]
[330318993,1719257444486,-151.0,0.000209,2]
[330318995,1719257444496,-151.0,0.000209,2]
[330318997,1719257444506,-255.271548,0.000209,2]
[330318999,1719257444515,-151.0,0.000209,2]
[330319001,1719257444524,-151.0,0.000209,2]
[330319003,1719257444535,-151.0,0.000209,2]
[330319005,1719257444545,-151.0,0.000209,2]
[330319006,1719257444554,-151.0,0.000209,2]
[330319008,1719257444564,-151.0,0.000209,2]
[330319011,1719257444574,-199.359591,0.000209,2]
[330319013,1719257444584,-199.359591,0.000209,2]
[330319015,1719257444593,-576.631628,0.000209,2]
[330319017,1719257444603,-576.631628,0.000209,2]
[330319019,1719257444612,-151.0,0.000209,2]
[330319021,1719257444622,-151.0,0.000209,2]
[330319023,1719257444631,-212.89401,0.000209,2]
[330319024,1719257444642,-1430.350881,0.000209,2]
[330319027,1719257444652,-151.0,0.000209,2]
[330319029,1719257444662,-1430.350881,0.000209,2]
[330319031,1719257444671,-151.0,0.000209,2]
[330319033,1719257444684,-151.0,0.000209,2]
[330319035,1719257444693,-168.913161,0.000209,2]
[330319037,1719257444703,-168.913161,0.000209,2]
[330319039,1719257444713,-383.483628,0.000209,2]
[330319041,1719257444722,-378.962525,0.000209,2]
[330319043,1719257444732,-244.697056,0.000209,2]
[330319045,1719257444742,-2900.0,0.000209,7]
[330319069,1719257444894,-383.483628,0.000209,2]
[330319073,1719257444904,-378.962525,0.000209,2]
[330319077,1719257444914,-244.697056,0.000209,2]
[330319079,1719257444924,-151.0,0.000209,2]
[330319081,1719257444933,-183.551754,0.000209,2]
[330319083,1719257444943,-151.0,0.000209,2]
[330319084,1719257444953,-183.551754,0.000209,2]
[330319086,1719257444962,-151.0,0.000209,2]
[330319089,1719257444972,-151.0,0.000209,2]
[330319090,1719257444981,-151.0,0.000209,2]
[330319092,1719257444991,-288293.600527,0.000209,3]
[330319095,1719257445001,-197.663913,0.000209,2]
[330319096,1719257445010,-151.0,0.000209,2]
[330319098,1719257445020,-197.663913,0.000209,2]
[330319101,1719257445030,-151.0,0.000209,2]
[330319102,1719257445039,-339.30792,0.000209,2]
[330319104,1719257445049,-301.422606,0.000209,2]
[330319107,1719257445059,-1161.234529,0.000209,2]
[330319108,1719257445068,-339.30792,0.000209,2]
[330319110,1719257445078,-301.422606,0.000209,2]
[330319113,1719257445088,-1161.234529,0.000209,2]
[330319114,1719257445098,-151.0,0.000209,2]
[330319116,1719257445108,-151.0,0.000209,2]
[330319118,1719257445117,-606.419929,0.000209,2]
[330319120,1719257445127,-606.419929,0.000209,2]
[330319122,1719257445136,-456.093793,0.000209,2]
[330319125,1719257445148,-456.093793,0.000209,2]
[330319127,1719257445158,-1804.362065,0.000209,2]
[330319129,1719257445167,-1804.362065,0.000209,2]
[330319130,1719257445177,-153.886928,0.000209,2]
[330319132,1719257445186,-151.0,0.000209,2]
[330319134,1719257445196,-255.381279,0.000209,2]
[330319136,1719257445205,-255.381279,0.000209,2]
[330319138,1719257445215,-153.886928,0.000209,2]
[330319141,1719257445225,-151.0,0.000209,2]
[330319143,1719257445234,-151.0,0.000209,2]
[330319145,1719257445244,-570.579589,0.000209,2]
[330319146,1719257445253,-570.579589,0.000209,2]
[330319148,1719257445263,-151.0,0.000209,2]
[330319151,1719257445272,-150.5,0.0002092,30]
[330319153,1719257445283,-296.0,0.0002092,30]
[330319154,1719257445292,-150.51,0.00020979,2]
[330319157,1719257445302,-152.2,0.00020979,2]
[330319159,1719257445311,-150.98,0.00020979,2]
[330319160,1719257445321,-150.0,0.00020979,2]
[330319162,1719257445330,-151.05,0.00020979,2]
[330319164,1719257445340,-354.35,0.00020979,2]
[330319167,1719257445349,-164.63,0.00020979,2]
[330319168,1719257445360,-150.0,0.00020979,2]
[330319170,1719257445374,-423.74,0.00020979,2]
[330319173,1719257445384,-150.0,0.00020979,2]
[330319174,1719257445394,-164.63,0.00020979,2]
[330319176,1719257445404,-150.0,0.00020979,2]
[330319178,1719257445414,-150.0,0.00020979,2]
[330319180,1719257445423,-150.0,0.00020979,2]
[330319182,1719257445433,-150.0,0.00020979,2]
[330319184,1719257445445,-150.0,0.00020979,2]
[330319186,1719257445454,-150.0,0.00020979,2]
[330319188,1719257445464,-354.35,0.00020979,2]
[330319190,1719257445474,-423.74,0.00020979,2]
[330319192,1719257445483,-150.0,0.00020979,2]
[330319194,1719257445492,-150.0,0.00020979,2]
[330319196,1719257445501,-150.0,0.00020979,2]
[330319198,1719257445511,-354.35,0.00020979,2]
[330319200,1719257445521,-150.0,0.00020979,2]
[330319202,1719257445531,-150.0,0.00020979,2]
[330319204,1719257445540,-150.0,0.00020979,2]
[330319206,1719257445550,-150.0,0.00020979,2]
[330319209,1719257445560,-164.63,0.00020979,2]
[330319211,1719257445570,-150.0,0.00020979,2]
[330319213,1719257445580,-423.74,0.00020979,2]
[330319215,1719257445589,-150.0,0.00020979,2]
[330319216,1719257445599,-150.0,0.00020979,2]
[330319218,1719257445608,-150.0,0.00020979,2]
[330319220,1719257445617,-150.0,0.00020979,2]
[330319222,1719257445626,-150.0,0.00020979,2]
[330319224,1719257445636,-164.63,0.00020979,2]
[330319226,1719257445647,-354.35,0.00020979,2]
[330319228,1719257445657,-423.74,0.00020979,2]
[330319230,1719257445667,-150.0,0.00020979,2]
[330319232,1719257445676,-150.0,0.00020979,2]
[330319234,1719257445685,-354.35,0.00020979,2]
[330319235,1719257445695,-150.0,0.00020979,2]
[330319236,1719257445704,-164.63,0.00020979,2]
[330319237,1719257445713,-150.0,0.00020979,2]
[330319238,1719257445723,-150.0,0.00020979,2]
[330319239,1719257445732,-1250.0,0.00021,2]
[330319240,1719257445742,-357.56799208,0.00021,2]
[330319241,1719257445751,-368.35287948,0.00021069,2]
[330319242,1719257445767,-296.42510962,0.00021086,2]
[330319243,1719257445789,-1635.38620182,0.00021255,2]
[330319246,1719257445806,-1988.00261,0.0002136,2]
[330319249,1719257445826,-2500.0,0.00021422,2]
[330319252,1719257445850,-852.95,0.00021501,2]
[330319255,1719257445866,-836.92,0.00021501,2]
[330319258,1719257445887,-852.95,0.00021501,2]
[330319261,1719257445906,-852.95,0.00021501,2]
[330319264,1719257445923,-696.45,0.00021501,2]
[330319267,1719257445946,-514.77354818,0.00021606,2]
[330319269,1719257445960,-154.92,0.00021644,2]
[330319272,1719257445978,-476.29,0.00021644,2]
[330319275,1719257445995,-490.25,0.00021644,2]
[330319278,1719257446012,-2500.0,0.00021755,2]
[330319281,1719257446029,-423.74,0.00021801,2]
[330319283,1719257446044,-257.46,0.00021801,2]
[330319286,1719257446060,-354.35,0.00021801,2]
[330319288,1719257446076,-150.0,0.00021801,2]
[330319291,1719257446092,-164.63,0.00021801,2]
[330319294,1719257446112,-150.0,0.00021801,2]
[330319297,1719257446128,-420.44,0.00021801,2]
[330319299,1719257446146,-150.0,0.00021801,2]
[330319302,1719257446161,-164.63,0.00021801,2]
[330319305,1719257446178,-150.0,0.00021801,2]
[330319308,1719257446195,-354.35,0.00021801,2]
[330319310,1719257446210,-345.18,0.00021801,2]
[330319313,1719257446226,-163.43,0.00021801,2]
[330319316,1719257446243,-150.0,0.00021801,2]
[330319318,1719257446259,-150.0,0.00021801,2]
[330319321,1719257446275,-150.0,0.00021801,2]
[330319324,1719257446291,-1279.25528947,0.00021891,2]
[330319326,1719257446309,-463.12,0.00021918,2]
[330319329,1719257446325,-151.0,0.00021918,2]
[330319332,1719257446340,-151.0,0.00021918,2]
[330319334,1719257446358,-151.0,0.00021918,2]
[330319337,1719257446375,-151.0,0.00021918,2]
[330319339,1719257446394,-151.0,0.00021918,2]
[330319342,1719257446410,-151.0,0.00021918,2]
[330319345,1719257446426,-151.0,0.00021918,2]
[330319347,1719257446443,-151.0,0.00021918,2]
[330319350,1719257446461,-151.0,0.00021918,2]
[330319353,1719257446477,-151.0,0.00021918,2]
[330319355,1719257446494,-716.33,0.00021918,2]
[330319358,1719257446512,-184.0,0.00021918,2]
[330319361,1719257446528,-151.0,0.00021918,7]
[330319363,1719257446543,-151.0,0.00021918,7]
[330319365,1719257446560,-339.30792,0.00021918,7]
[330319367,1719257446577,-1161.234529,0.00021918,7]
[330319370,1719257446593,-339.30792,0.00021918,7]
[330319373,1719257446610,-1161.234529,0.00021918,7]
[330319375,1719257446624,-151.0,0.00021918,7]
[330319376,1719257446641,-151.0,0.00021918,7]
[330319377,1719257446658,-606.419929,0.00021918,7]
[330319378,1719257446675,-606.419929,0.00021918,7]
[330319379,1719257446691,-456.093793,0.00021918,7]
[330319380,1719257446708,-456.093793,0.00021918,7]
[330319383,1719257446724,-263.42284993,0.00021927,2]
[330319385,1719257446739,-845.56,0.00021996,2]
[330319388,1719257446756,-150.0,0.00021999,2]
[330319391,1719257446771,-1281519.9167176,0.00022,7]
[330319431,1719257447690,-7076.25690347,0.00022,7]
[330319437,1719257448242,-320.789799,0.00020548,2]
[330319438,1719257448254,-151.0,0.0002068,2]
[330319439,1719257448264,-77.15423622,0.000208,2]
[330319440,1719257448276,-73.84576378,0.000208,2]
[330319441,1719257448287,-151.0,0.000209,2]
[330319442,1719257448297,-7215.09012931,0.00022,7]
[330319443,1719257448310,-1110.69470521,0.00022,7]
[330319444,1719257448322,-11129.60899707,0.00022,7]
[330319445,1719257448334,-3849.9343639,0.00022,7]
[330319446,1719257448345,-2502.2473454,0.00022,7]
[330319447,1719257448358,-306.03178864,0.00022,7]
[330319448,1719257448374,-4156.01305818,0.00022,7]
[330319449,1719257448386,-870.83827032,0.00022,7]
[330319452,1719257448401,-10066.03213401,0.00022,7]
[330319453,1719257448413,-64188.10666615,0.00022,7]
[330319455,1719257448425,-888.32486573,0.00022,7]
[330319458,1719257448437,-10261.520456,0.00022,7]
[330319460,1719257448451,-3207.07153161,0.00022,7]
[330319462,1719257448464,-647.526547,0.00022,7]
[330319464,1719257448475,-739.70005,0.00022,7]
[330319466,1719257448487,-664.0,0.00022,7]
[330319469,1719257448499,-41944.38726447,0.00022,7]
[330319471,1719257448511,-1201.9,0.00022,7]
[330319646,1719257450252,-159.37216947,0.00016555,2]
[330319648,1719257450261,-176.45216287,0.00016833,2]
[330319650,1719257450271,-360.83269692,0.00018999,2]
[330319652,1719257450282,-292.10250999,0.00018999,2]
[330319655,1719257450293,-386.54715995,0.00018999,2]
[330319657,1719257450304,-246.2301948,0.00018999,2]
[330319659,1719257450314,-319.76505126,0.0002137,2]
[330319661,1719257450325,-1.02474774,0.0002137,2]
[330319663,1719257450334,-1307.65500358,0.00022,7]
[330319734,1719257451118,-0.01248765,0.00016897,2]
[330319736,1719257451130,-655.0,0.00016897,2]
[330319738,1719257451141,-5979.40394953,0.00016897,2]
[330319741,1719257451153,-29082.24971128,0.00016897,2]
[330319743,1719257451163,-444.13,0.00018395,2]
[330319745,1719257451172,-1052.0,0.0001989,2]
[330319747,1719257451182,-444.13,0.00020659,2]
[330319749,1719257451192,-127606.66495219,0.00022,7]
[330319751,1719257451204,-619.55466923,0.00022,7]
[330319753,1719257451216,-613.31437126,0.00022,7]
[330319755,1719257451227,-4748.5911724,0.00022,7]
[330319758,1719257451239,-2615.90852854,0.00022,7]
[330319760,1719257451251,-599.12791226,0.00022,7]
[330319762,1719257451264,-354.37716682,0.00022,7]
[330319764,1719257451275,-414.36,0.00022,7]
[330319766,1719257451287,-4886.4734566,0.00022,7]
[330319769,1719257451298,-21138.77639407,0.00022,7]
[330319771,1719257451309,-34247.40116125,0.00022,7]
[330319773,1719257451320,-934.72853748,0.00022,7]
[330319775,1719257451332,-1004.22140236,0.00022,7]
[330319778,1719257451343,-2527.858,0.00022,7]
[330319780,1719257451355,-732.25253567,0.00022,7]
[330319782,1719257451368,-4384.035,0.00022,7]
[330319784,1719257451379,-5958.30201139,0.00022,7]
[330319786,1719257451391,-4472.4747393,0.00022,7]
[330319788,1719257451404,-420.62036438,0.00022,7]
[330319791,1719257451416,-1137.34115621,0.00022,7]
[330319793,1719257451428,-19578.84063655,0.00022,7]
[330320303,1719257598487,200.0,0.0002536,120]
[330320304,1719257598901,200.0,0.0002596,120]
[330320305,1719257602179,1000.0,0.0002536,120]
[330320306,1719257604748,200.0,0.00025085,120]
[330320307,1719257605116,200.0,0.00025702,120]
[330320320,1719258052656,-264.69,0.0002197,30]
[330320321,1719258052680,-237.66,0.0002197,30]
[330320322,1719258052705,-2882.0,0.0002197,30]
[330320323,1719258052729,-150.5,0.0002197,30]
[330320324,1719258052753,-150.5,0.0002197,30]
[330320325,1719258052777,-1584.0,0.0002197,30]
[330320326,1719258052800,-217.0,0.0002197,30]
[330320327,1719258052827,-172.0,0.0002197,30]
[330320328,1719258052850,-150.5,0.0002198,30]
[330320329,1719258052874,-150.5,0.0002198,30]
[330320330,1719258052900,-2882.0,0.0002198,30]
[330320331,1719258052924,-150.5,0.0002198,30]
[330320332,1719258052947,-150.5,0.0002198,30]
[330320333,1719258052972,-1584.0,0.0002198,30]
[330320334,1719258052997,-217.0,0.0002198,30]
[330320335,1719258053022,-172.0,0.0002198,30]
[330320336,1719258053050,-150.5,0.0002199,30]
[330320337,1719258053076,-150.5,0.0002199,30]
[330320338,1719258053102,-2882.0,0.0002199,30]
[330320339,1719258053126,-150.5,0.0002199,30]
[330320340,1719258053149,-150.5,0.0002199,30]
[330320341,1719258053172,-1584.0,0.0002199,30]
[330320342,1719258053196,-217.0,0.0002199,30]
[330320343,1719258053219,-172.0,0.0002199,30]
[330320344,1719258053251,-2882.0,0.0002282,30]
[330320345,1719258053279,-2882.0,0.0002283,30]
[330320346,1719258053306,-2882.0,0.0002284,30]
[330320347,1719258053331,-151.25,0.0002284,30]
[330320348,1719258053356,-1584.0,0.0002284,30]
[330320349,1719258053381,-217.0,0.0002284,30]
[330320350,1719258053405,-172.0,0.0002284,30]
[330320351,1719258053430,-1584.0,0.0002285,30]
[330320352,1719258053453,-217.0,0.0002285,30]
[330320353,1719258053476,-172.0,0.0002285,30]
[330320354,1719258053500,-201.74,0.0002286,30]
[330320355,1719258053525,-1584.0,0.0002286,30]
[330320356,1719258053549,-217.0,0.0002286,30]
[330320357,1719258053575,-172.0,0.0002286,30]
[330320358,1719258053607,-2882.0,0.00022869,30]
[330320359,1719258053632,-1584.0,0.00022869,30]
[330320360,1719258053657,-217.0,0.00022869,30]
[330320361,1719258053681,-172.0,0.00022869,30]
[330320362,1719258053708,-2882.0,0.00022879,30]
[330320363,1719258053732,-1584.0,0.00022879,30]
[330320364,1719258053756,-217.0,0.00022879,30]
[330320365,1719258053780,-172.0,0.00022879,30]
[330320366,1719258053810,-2886.67,0.0002297,30]
[330320367,1719258053839,-1587.1,0.0002297,30]
[330320368,1719258053865,-220.2,0.0002297,30]
[330320369,1719258053891,-177.0,0.0002297,30]
[330320370,1719258053918,-2882.0,0.0002298,30]
[330320371,1719258053942,-1584.0,0.0002298,30]
[330320372,1719258053965,-217.0,0.0002298,30]
[330320373,1719258054160,-172.0,0.0002298,30]
[330320374,1719258054210,-871.0858472,0.00024,30]
[330320375,1719258054247,-667.77792935,0.00025,30]
[330320376,1719258054272,-919.86502131,0.00025,30]
[330320377,1719258054304,-200.0,0.00026499,120]
[330320378,1719258054330,-200.0,0.00026499,120]
[330320379,1719258054357,-662.13985332,0.000269,30]
[330320380,1719258054382,-200.0,0.00026999,120]
[330320381,1719258054407,-200.0,0.00026999,120]
[330320382,1719258054434,-292.47630776,0.0002739,30]
[330320383,1719258054458,-2500.0,0.00027397,90]
[330320384,1719258054487,-200.0,0.00027397,60]
[330320385,1719258054514,-1000.0,0.00027499,120]
[330320386,1719258054540,-2500.0,0.00027671,90]
[330320387,1719258054566,-2500.0,0.00027945,90]
[330320388,1719258054597,-1550.77409293,0.00028,30]
[330320389,1719258054624,-2500.0,0.00028219,90]
[330320390,1719258054650,-2500.0,0.00028493,90]
[330320391,1719258054675,-150.0,0.00028496,120]
[330320392,1719258054699,-2500.0,0.00028767,90]
[330320393,1719258054724,-102507.13672801,0.00028959,30]
[330320394,1719258054749,-2500.0,0.00029041,90]
[330320395,1719258054776,-159.78,0.000293,31]
[330320396,1719258054802,-159.78,0.000293,31]
[330320397,1719258054828,-159.78,0.000293,31]
[330320398,1719258054853,-159.78,0.000293,31]
[330320399,1719258054878,-159.78,0.000293,31]
[330320400,1719258054902,-2500.0,0.00029315,90]
[330320401,1719258054927,-150.0,0.00029349,120]
[330320402,1719258054951,-150.0,0.00029356,120]
[330320403,1719258054977,-150.0,0.00029525,120]
[330320404,1719258055001,-2500.0,0.00029589,90]
[330320405,1719258055026,-150.0,0.00029648,120]
[330320406,1719258055053,-2500.0,0.00029863,90]
[330320407,1719258055080,-1191.72609757,0.0002988,30]
[330320408,1719258055127,-150.0,0.00029949,120]
[330320409,1719258055152,-1146.44684562,0.00029999,30]
[330320410,1719258055177,-1404.49121719,0.0003,60]
[330320411,1719258055200,-418.66907053,0.0003,30]
[330320412,1719258055224,-285.83997765,0.0003,30]
[330320413,1719258055248,-707.15643715,0.0003,30]
[330320414,1719258055273,-250.0,0.0003,30]
[330320415,1719258055297,-250.0,0.0003,30]
[330320416,1719258055321,-250.0,0.0003,30]
[330320417,1719258055348,-11831.0,0.0003,30]
[330320418,1719258055372,-500.0,0.0003,120]
[330320419,1719258055396,-2500.0,0.00030136,120]
[330320420,1719258055419,-272.23875122,0.00030137,60]
[330320421,1719258055446,-150.0,0.00030236,120]
[330320422,1719258055473,-159.78,0.000303,31]
[330320423,1719258055499,-159.78,0.000303,31]
[330320424,1719258055527,-150.0,0.00030387,120]
[330320425,1719258055553,-1163.62271567,0.0003041,120]
[330320426,1719258055583,-150.0,0.00030565,120]
[330320427,1719258055609,-150.0,0.00030657,120]
[330320428,1719258055635,-375.0,0.00030713,120]
[330320429,1719258055660,-250.0,0.000308,30]
[330320430,1719258055687,-500.0,0.00031,120]
[330320431,1719258055714,-159.78,0.000314,31]
[330320432,1719258055740,-159.78,0.000314,31]
[330320433,1719258055766,-150.0,0.00031912,120]
[330320434,1719258055790,-500.0,0.00032,120]
[330320435,1719258055815,-262.31871861,0.00032393,40]
[330320436,1719258055842,-159.78,0.000324,31]
[330320437,1719258055868,-159.78,0.000324,31]
[330320438,1719258055893,-375.0,0.00032465,120]
[330320439,1719258055918,-11831.0,0.000325,30]
[330320440,1719258055942,-150.0,0.0003253,120]
[330320441,1719258055967,-535.72546164,0.00032876,30]
[330320442,1719258055992,-200.0,0.00032877,60]
[330320443,1719258056016,-4000.0,0.00032877,30]
[330320444,1719258056041,-154.22479112,0.00033,30]
[330320445,1719258056064,-159.10082919,0.00033,120]
[330320446,1719258056088,-500.0,0.00033,120]
[330320447,1719258056112,-716.33,0.00033151,120]
[330320448,1719258056136,-385.93,0.00033151,120]
[330320449,1719258056162,-150.0,0.00033398,120]
[330320450,1719258056343,-159.78,0.000335,31]
[330320451,1719258056373,-159.78,0.000335,31]
[330320452,1719258056398,-465.0,0.00034,120]
[330320453,1719258056421,-500.0,0.00034,120]
[330320454,1719258056446,-375.0,0.00034217,120]
[330320455,1719258056469,-200.0,0.00034383,40]
[330320456,1719258056495,-300.0,0.00034383,40]
[330320457,1719258056520,-150.0,0.00034409,120]
[330320458,1719258056544,-217.96,0.00035,120]
[330320459,1719258056568,-652.45940549,0.00035,30]
[330320460,1719258056596,-1066.32358868,0.00035,30]
[330320461,1719258056621,-250.0,0.00035,30]
[330320462,1719258056646,-11831.0,0.00035,30]
[330320463,1719258056674,-500.0,0.00035,120]
[330320464,1719258056701,-150.0,0.00035432,120]
[330320465,1719258056727,-150.0,0.00035479,120]
[330320466,1719258056753,-200.0,0.00035616,60]
[330320467,1719258056779,-150.0,0.00035652,120]
[330320468,1719258056805,-150.0,0.00035703,120]
[330320469,1719258056833,-200.0,0.0003589,50]
[330320470,1719258056858,-375.0,0.00035969,120]
[330320471,1719258056882,-150.0,0.0003599,120]
[330320472,1719258056906,-1000.0,0.00036,120]
[330320473,1719258056931,-500.0,0.00036,120]
[330320474,1719258056957,-150.0,0.00036138,120]
[330320475,1719258056982,-150.0,0.00036222,120]
[330320476,1719258057007,-150.0,0.00036384,120]
[330320477,1719258057032,-150.0,0.00036816,120]
[330320478,1719258057059,-150.0,0.00036997,120]
[330320479,1719258057082,-500.0,0.00037,120]
[330320480,1719258057108,-150.0,0.00037249,120]
[330320481,1719258057133,-200.0,0.00037397,60]
[330320482,1719258057158,-150.0,0.00037469,120]
[330320483,1719258057183,-18327.0,0.000375,30]
[330320484,1719258057211,-150.0,0.00037531,120]
[330320485,1719258057236,-150.0,0.00037536,120]
[330320486,1719258057262,-420.49171697,0.00037644,30]
[330320487,1719258057286,-150.0,0.00037771,120]
[330320488,1719258057311,-2022.29581292,0.000378,70]
[330320489,1719258057337,-150.0,0.00037808,120]
[330320490,1719258057362,-420.49171697,0.00037808,30]
[330320491,1719258057387,-420.49171697,0.00037945,30]
[330320492,1719258057411,-155.0,0.00038,90]
[330320493,1719258057436,-1150.83770424,0.00038,120]
[330320494,1719258057461,-467.75147794,0.00038,120]
[330320495,1719258057487,-1000.0,0.00038,120]
[330320496,1719258057511,-1178.69292167,0.00038,30]
[330320497,1719258057534,-250.0,0.00038,120]
[330320498,1719258057560,-420.49171697,0.0003811,30]
[330320499,1719258057589,-150.0,0.00038152,120]
[330320500,1719258057616,-150.0,0.0003821,120]
[330320501,1719258057640,-420.49171697,0.00038274,30]
[330320502,1719258057664,-200.0,0.00038356,60]
[330320503,1719258057688,-420.49171697,0.00038438,30]
[330320504,1719258057713,-420.49171697,0.00038603,30]
[330320505,1719258057738,-605.36207641,0.000387,30]
[330320506,1719258057762,-420.49171697,0.0003874,30]
[330320507,1719258057787,-200.0,0.00038904,70]
[330320508,1719258057812,-420.49171697,0.00038904,30]
[330320509,1719258057839,-167.08205617,0.00039,30]
[330320510,1719258057864,-694.85757286,0.00039,120]
[330320511,1719258057888,-1461.25877726,0.00039,120]
[330320512,1719258057914,-420.49171697,0.00039068,30]
[330320513,1719258057938,-150.0,0.0003908,120]
[330320514,1719258057965,-420.49171697,0.00039233,30]
[330320515,1719258057990,-420.49171697,0.00039397,30]
[330320516,1719258058019,-420.49171697,0.00039534,30]
[330320517,1719258058049,-420.49171697,0.00039699,30]
[330320518,1719258058074,-294.60401667,0.0003985,30]
[330320519,1719258058100,-420.49171697,0.00039863,30]
[330320520,1719258058127,-408.0,0.00039986,90]
[330320521,1719258058154,-50000.0,0.0004,30]
[330320522,1719258058179,-324.76470898,0.0004,30]
[330320523,1719258058203,-477.12749073,0.0004,30]
[330320524,1719258058227,-281.4421998,0.0004,120]
[330320525,1719258058252,-905.70121506,0.0004,120]
[330320526,1719258058277,-541.8436313,0.0004,30]
[330320527,1719258058302,-367.31217447,0.0004,120]
[330320528,1719258058330,-215.31340754,0.0004,30]
[330320529,1719258058354,-230.9184547,0.0004,30]
[330320530,1719258058378,-341.89382197,0.0004,30]
[330320531,1719258058402,-430.92013627,0.0004,120]
[330320532,1719258058426,-1025.52948633,0.0004,60]
[330320533,1719258058607,-184.47937894,0.0004,30]
[330320534,1719258058632,-1162.72791237,0.0004,30]
[330320535,1719258058658,-655.28491735,0.0004,120]
[330320536,1719258058682,-384.65903954,0.0004,30]
[330320537,1719258058709,-1697.97898886,0.0004,120]
[330320538,1719258058734,-14156.96040558,0.0004,120]
[330320539,1719258058757,-1000.0,0.0004,120]
[330320540,1719258058781,-260.0,0.0004,120]
[330320541,1719258058806,-18305.8,0.0004,30]
[330320542,1719258058832,-299.87383845,0.0004,60]